[Event "Early-Titled-Tuesday-Blitz-April-02-2024"]
[Site "Chess.com"]
[Date "2024.04.02"]
[Round "2"]
[White "Boundless_Strike"]
[Black "NigiriSushies"]
[Result "1-0"]
[WhiteElo "2670"]
[BlackElo "2264"]
[TimeControl "180+1"]
[EndTime "8:17:29 PDT"]
[Termination "Boundless_Strike won by checkmate"]

1. d4 {[%clk 0:03:00.9]} 1... d5 {[%clk 0:03:00]} 2. e4 {[%clk 0:03:00.9]} 2...
dxe4 {[%clk 0:02:59.4]} 3. Nc3 {[%clk 0:03:01]} 3... Nf6 {[%clk 0:02:59.4]} 4.
f3 {[%clk 0:03:01.3]} 4... exf3 {[%clk 0:02:58.9]} 5. Nxf3 {[%clk 0:03:01.7]}
5... c5 {[%clk 0:02:59.3]} 6. d5 {[%clk 0:02:56.7]} 6... e6 {[%clk 0:02:41.9]}
7. Bb5+ {[%clk 0:02:53.5]} 7... Bd7 {[%clk 0:02:18.6]} 8. dxe6 {[%clk
0:02:53.2]} 8... fxe6 {[%clk 0:02:16.8]} 9. Qe2 {[%clk 0:02:51.7]} 9... Bxb5
{[%clk 0:01:48.6]} 10. Nxb5 {[%clk 0:02:36.8]} 10... Be7 {[%clk 0:01:36]} 11.
Bf4 {[%clk 0:02:22]} 11... Na6 {[%clk 0:01:25.9]} 12. O-O {[%clk 0:01:23.8]}
12... O-O {[%clk 0:01:10.8]} 13. Qxe6+ {[%clk 0:01:22]} 13... Kh8 {[%clk
0:01:10.7]} 14. Rfe1 {[%clk 0:01:07.7]} 14... Qa5 {[%clk 0:00:37.9]} 15. c4
{[%clk 0:01:00.9]} 15... Rae8 {[%clk 0:00:33.4]} 16. Ne5 {[%clk 0:01:00.8]}
16... h6 {[%clk 0:00:02.4]} 17. Ng6+ {[%clk 0:00:57.1]} 17... Kh7 {[%clk
0:00:02.4]} 18. Nxe7 {[%clk 0:00:54.4]} 18... Rxe7 {[%clk 0:00:01.2]} 19. Qxe7
{[%clk 0:00:54.1]} 19... Re8 {[%clk 0:00:02]} 20. Qxe8 {[%clk 0:00:14.7]} 20...
Nxe8 {[%clk 0:00:02.9]} 21. Rxe8 {[%clk 0:00:15]} 21... Qb6 {[%clk 0:00:03.6]}
22. Rae1 {[%clk 0:00:12.1]} 22... Qf6 {[%clk 0:00:03.8]} 23. Be5 {[%clk
0:00:10.4]} 23... Qf7 {[%clk 0:00:04]} 24. Bc3 {[%clk 0:00:09.7]} 24... Qxc4
{[%clk 0:00:03.9]} 25. R8e7 {[%clk 0:00:09.4]} 25... Qxb5 {[%clk 0:00:01.8]} 26.
Rxg7+ {[%clk 0:00:09.7]} 26... Kh8 {[%clk 0:00:01.9]} 27. Rxb7+ {[%clk
0:00:09.8]} 27... Kg8 {[%clk 0:00:02.5]} 28. Rxb5 {[%clk 0:00:09.4]} 28... Nc7
{[%clk 0:00:03.4]} 29. Rb7 {[%clk 0:00:09.8]} 29... Ne8 {[%clk 0:00:04.3]} 30.
Rxe8# {[%clk 0:00:10.1]} 1-0

[Event "Early-Titled-Tuesday-Blitz-April-02-2024"]
[Site "Chess.com"]
[Date "2024.04.02"]
[Round "2"]
[White "stollenmonster"]
[Black "tetrix83"]
[Result "1-0"]
[WhiteElo "2916"]
[BlackElo "2614"]
[TimeControl "180+1"]
[EndTime "8:17:32 PDT"]
[Termination "stollenmonster won on time"]

1. e4 {[%clk 0:03:00.9]} 1... c5 {[%clk 0:02:58.9]} 2. Nf3 {[%clk 0:03:00.4]}
2... d6 {[%clk 0:02:59]} 3. d4 {[%clk 0:03:00.2]} 3... cxd4 {[%clk 0:02:59.9]}
4. Nxd4 {[%clk 0:03:01.1]} 4... Nf6 {[%clk 0:03:00.4]} 5. Nc3 {[%clk 0:03:01.4]}
5... a6 {[%clk 0:03:00.9]} 6. a4 {[%clk 0:03:01.2]} 6... Nc6 {[%clk 0:02:59.2]}
7. Nde2 {[%clk 0:03:01.2]} 7... e6 {[%clk 0:02:57.2]} 8. g3 {[%clk 0:03:01.5]}
8... Be7 {[%clk 0:02:54.4]} 9. Bg2 {[%clk 0:03:01.9]} 9... O-O {[%clk
0:02:53.9]} 10. O-O {[%clk 0:03:02.5]} 10... Qc7 {[%clk 0:02:54.5]} 11. Nb1
{[%clk 0:03:01.6]} 11... Rb8 {[%clk 0:02:50.6]} 12. c4 {[%clk 0:02:45.9]} 12...
b5 {[%clk 0:02:50.5]} 13. axb5 {[%clk 0:02:46.2]} 13... axb5 {[%clk 0:02:51.4]}
14. cxb5 {[%clk 0:02:46.7]} 14... Rxb5 {[%clk 0:02:51.5]} 15. Nbc3 {[%clk
0:02:47.5]} 15... Rb4 {[%clk 0:02:47]} 16. Ra2 {[%clk 0:02:44.5]} 16... Bb7
{[%clk 0:02:39]} 17. Bf4 {[%clk 0:02:38]} 17... Ne5 {[%clk 0:02:38.3]} 18. Qb1
{[%clk 0:02:13.1]} 18... Qc4 {[%clk 0:01:42.7]} 19. Rd1 {[%clk 0:02:05]} 19...
Rc8 {[%clk 0:00:37.5]} 20. Rd4 {[%clk 0:01:58.6]} 20... Qb3 {[%clk 0:00:30.3]}
21. Qa1 {[%clk 0:01:34.1]} 21... Rxd4 {[%clk 0:00:18]} 22. Nxd4 {[%clk 0:01:34]}
22... Qb6 {[%clk 0:00:14.2]} 23. Ra4 {[%clk 0:01:25.9]} 23... Nd3 {[%clk
0:00:08.6]} 24. Be3 {[%clk 0:01:21.4]} 24... Nc5 {[%clk 0:00:06.5]} 25. Ra7
{[%clk 0:01:13.1]} 25... g6 {[%clk 0:00:06.2]} 26. Ndb5 {[%clk 0:00:59.9]} 26...
Ng4 {[%clk 0:00:06]} 27. Bd4 {[%clk 0:00:54.9]} 27... e5 {[%clk 0:00:05.6]} 28.
Bxc5 {[%clk 0:00:51.4]} 28... Rxc5 {[%clk 0:00:05.8]} 29. h3 {[%clk 0:00:21.5]}
29... Nxf2 {[%clk 0:00:03.3]} 30. Kh2 {[%clk 0:00:20.1]} 30... Rxb5 {[%clk
0:00:02.4]} 31. Nxb5 {[%clk 0:00:20]} 31... Qxb5 {[%clk 0:00:03.3]} 32. Qc1
{[%clk 0:00:18.8]} 32... Bf6 {[%clk 0:00:02.4]} 33. Qc7 {[%clk 0:00:18.6]} 1-0

[Event "Early-Titled-Tuesday-Blitz-April-02-2024"]
[Site "Chess.com"]
[Date "2024.04.02"]
[Round "2"]
[White "Matibar"]
[Black "PavelChernomordik"]
[Result "0-1"]
[WhiteElo "2719"]
[BlackElo "2412"]
[TimeControl "180+1"]
[EndTime "8:17:32 PDT"]
[Termination "PavelChernomordik won by resignation"]

1. Nc3 {[%clk 0:02:56.9]} 1... g6 {[%clk 0:02:59.8]} 2. d4 {[%clk 0:02:55.2]}
2... Bg7 {[%clk 0:02:58.7]} 3. e4 {[%clk 0:02:55.3]} 3... d6 {[%clk 0:02:58.8]}
4. Bg5 {[%clk 0:02:53.5]} 4... h6 {[%clk 0:02:57.7]} 5. Be3 {[%clk 0:02:52.9]}
5... a6 {[%clk 0:02:57.5]} 6. Qd2 {[%clk 0:02:52.4]} 6... b5 {[%clk 0:02:56.9]}
7. h4 {[%clk 0:02:49]} 7... Bb7 {[%clk 0:02:56]} 8. f3 {[%clk 0:02:48.5]} 8...
Nd7 {[%clk 0:02:55.2]} 9. Nh3 {[%clk 0:02:43.1]} 9... e6 {[%clk 0:02:54.1]} 10.
Nf2 {[%clk 0:02:42.1]} 10... Nb6 {[%clk 0:02:51]} 11. a4 {[%clk 0:02:23]} 11...
Nc4 {[%clk 0:02:37.8]} 12. Bxc4 {[%clk 0:02:22]} 12... bxc4 {[%clk 0:02:37.6]}
13. Qe2 {[%clk 0:02:10.2]} 13... d5 {[%clk 0:02:36.3]} 14. exd5 {[%clk
0:02:09.8]} 14... Bxd5 {[%clk 0:02:27.4]} 15. Nxd5 {[%clk 0:02:09.3]} 15... Qxd5
{[%clk 0:02:25.9]} 16. Ne4 {[%clk 0:01:59.7]} 16... Rb8 {[%clk 0:02:16]} 17. c3
{[%clk 0:01:45.2]} 17... Ne7 {[%clk 0:02:12.3]} 18. O-O {[%clk 0:01:42.7]} 18...
Nf5 {[%clk 0:02:11.4]} 19. Bf2 {[%clk 0:01:42.6]} 19... O-O {[%clk 0:02:05.2]}
20. Rad1 {[%clk 0:01:37.1]} 20... Rb6 {[%clk 0:01:53.7]} 21. Rd2 {[%clk
0:01:25.7]} 21... Rfb8 {[%clk 0:01:52.9]} 22. Nc5 {[%clk 0:01:14.2]} 22... Bf6
{[%clk 0:01:43.3]} 23. g3 {[%clk 0:01:09.7]} 23... Be7 {[%clk 0:01:42.6]} 24.
Rfd1 {[%clk 0:01:08.7]} 24... a5 {[%clk 0:01:32]} 25. Kg2 {[%clk 0:00:49.5]}
25... h5 {[%clk 0:01:27.7]} 26. Kh3 {[%clk 0:00:48.9]} 26... Qc6 {[%clk
0:01:16.4]} 27. Kg2 {[%clk 0:00:37.2]} 27... Nd6 {[%clk 0:01:04.5]} 28. d5
{[%clk 0:00:31.7]} 28... exd5 {[%clk 0:00:52.5]} 29. Qxe7 {[%clk 0:00:31]} 29...
Rxb2 {[%clk 0:00:51.8]} 30. Qe5 {[%clk 0:00:26.1]} 30... Nf5 {[%clk 0:00:32.5]}
31. Kg1 {[%clk 0:00:17.1]} 31... d4 {[%clk 0:00:30.9]} 32. Qxd4 {[%clk
0:00:13.7]} 32... Nxd4 {[%clk 0:00:30.5]} 33. Bxd4 {[%clk 0:00:05.9]} 33... Qxf3
{[%clk 0:00:27.3]} 34. Bf2 {[%clk 0:00:05.1]} 34... Rxd2 {[%clk 0:00:25.2]} 35.
Rxd2 {[%clk 0:00:05.6]} 35... Rb1+ {[%clk 0:00:24.9]} 0-1

[Event "Early-Titled-Tuesday-Blitz-April-02-2024"]
[Site "Chess.com"]
[Date "2024.04.02"]
[Round "2"]
[White "2KTNGO"]
[Black "Onischuk_V"]
[Result "0-1"]
[WhiteElo "2586"]
[BlackElo "2822"]
[TimeControl "180+1"]
[EndTime "8:17:36 PDT"]
[Termination "Onischuk_V won on time"]

1. d4 {[%clk 0:03:00.9]} 1... d6 {[%clk 0:02:59.5]} 2. e4 {[%clk 0:02:58.6]}
2... Nf6 {[%clk 0:02:59.1]} 3. Nc3 {[%clk 0:02:57.9]} 3... g6 {[%clk 0:02:59.7]}
4. Nf3 {[%clk 0:02:56]} 4... Bg7 {[%clk 0:03:00.4]} 5. Be2 {[%clk 0:02:53.9]}
5... O-O {[%clk 0:03:00.5]} 6. O-O {[%clk 0:02:53]} 6... a6 {[%clk 0:03:01.1]}
7. h3 {[%clk 0:02:48.2]} 7... Nc6 {[%clk 0:03:00.9]} 8. Bg5 {[%clk 0:02:39.8]}
8... h6 {[%clk 0:02:56.9]} 9. Be3 {[%clk 0:02:38.1]} 9... e5 {[%clk 0:02:57.1]}
10. Qd2 {[%clk 0:02:34.3]} 10... exd4 {[%clk 0:02:57]} 11. Nxd4 {[%clk
0:02:33.5]} 11... Nxd4 {[%clk 0:02:57.1]} 12. Bxd4 {[%clk 0:02:32.5]} 12... Re8
{[%clk 0:02:57.8]} 13. Bf3 {[%clk 0:02:32.1]} 13... Bd7 {[%clk 0:02:55.1]} 14.
Rfe1 {[%clk 0:02:27.2]} 14... Bc6 {[%clk 0:02:55.2]} 15. Rad1 {[%clk 0:02:16.7]}
15... Nd7 {[%clk 0:02:54.6]} 16. Be3 {[%clk 0:02:11.1]} 16... Kh7 {[%clk
0:02:48.6]} 17. Nd5 {[%clk 0:01:54.9]} 17... Nf6 {[%clk 0:02:22.5]} 18. Bf4
{[%clk 0:01:36.4]} 18... Nxd5 {[%clk 0:02:17.3]} 19. exd5 {[%clk 0:01:35.7]}
19... Bd7 {[%clk 0:02:17.7]} 20. c3 {[%clk 0:01:29.7]} 20... Qh4 {[%clk
0:02:15.7]} 21. Be3 {[%clk 0:01:14]} 21... Qc4 {[%clk 0:02:12]} 22. a3 {[%clk
0:01:10.4]} 22... a5 {[%clk 0:02:09.1]} 23. Bd4 {[%clk 0:00:54]} 23... a4 {[%clk
0:01:50.6]} 24. Re3 {[%clk 0:00:33.3]} 24... Rxe3 {[%clk 0:01:45.5]} 25. Bxe3
{[%clk 0:00:33]} 25... Re8 {[%clk 0:01:43.1]} 26. Bd4 {[%clk 0:00:30.2]} 26...
Be5 {[%clk 0:01:25.9]} 27. Re1 {[%clk 0:00:21.8]} 27... Bxd4 {[%clk 0:01:25.4]}
28. Rxe8 {[%clk 0:00:14.9]} 28... Bxe8 {[%clk 0:01:25.1]} 29. Qxd4 {[%clk
0:00:15]} 29... Qxd4 {[%clk 0:01:19.4]} 30. cxd4 {[%clk 0:00:15]} 30... Bb5
{[%clk 0:01:19.9]} 31. Be4 {[%clk 0:00:14.6]} 31... Kg7 {[%clk 0:01:14.1]} 32.
f4 {[%clk 0:00:14.3]} 32... Kf6 {[%clk 0:01:00]} 33. Kf2 {[%clk 0:00:13.2]}
33... g5 {[%clk 0:01:00.4]} 34. Ke3 {[%clk 0:00:13.1]} 34... Bc4 {[%clk
0:01:00]} 35. Bf3 {[%clk 0:00:12.3]} 35... Kf5 {[%clk 0:00:58.5]} 36. g4+ {[%clk
0:00:11.8]} 36... Kf6 {[%clk 0:00:58.5]} 37. Be4 {[%clk 0:00:11.9]} 37... Bf1
{[%clk 0:00:54.5]} 38. h4 {[%clk 0:00:09]} 38... gxh4 {[%clk 0:00:53.5]} 39. Kf2
{[%clk 0:00:09.2]} 39... Bh3 {[%clk 0:00:43.1]} 40. Bf3 {[%clk 0:00:07]} 40...
Kg6 {[%clk 0:00:43.3]} 41. Kg1 {[%clk 0:00:06.7]} 41... f5 {[%clk 0:00:43.2]}
42. gxf5+ {[%clk 0:00:01.3]} 42... Kxf5 {[%clk 0:00:42.8]} 43. Kh2 {[%clk
0:00:01.5]} 43... Bg4 {[%clk 0:00:42.6]} 0-1

[Event "Early-Titled-Tuesday-Blitz-April-02-2024"]
[Site "Chess.com"]
[Date "2024.04.02"]
[Round "2"]
[White "LileKoridze"]
[Black "Blackwhite017"]
[Result "1-0"]
[WhiteElo "2433"]
[BlackElo "2081"]
[TimeControl "180+1"]
[EndTime "8:17:38 PDT"]
[Termination "LileKoridze won on time"]

1. d4 {[%clk 0:03:00.9]} 1... d5 {[%clk 0:02:58.1]} 2. c4 {[%clk 0:03:01.3]}
2... e6 {[%clk 0:02:57.7]} 3. Nf3 {[%clk 0:03:01.6]} 3... a6 {[%clk 0:02:56.4]}
4. g3 {[%clk 0:03:01]} 4... dxc4 {[%clk 0:02:56.5]} 5. Bg2 {[%clk 0:03:01.4]}
5... c5 {[%clk 0:02:56.5]} 6. O-O {[%clk 0:02:58.6]} 6... cxd4 {[%clk
0:02:44.3]} 7. Nxd4 {[%clk 0:02:54.3]} 7... Nf6 {[%clk 0:02:40.3]} 8. Qa4+
{[%clk 0:02:47.6]} 8... Qd7 {[%clk 0:02:37.9]} 9. Qxc4 {[%clk 0:02:46.6]} 9...
b5 {[%clk 0:02:37]} 10. Qd3 {[%clk 0:02:36.1]} 10... Bb7 {[%clk 0:02:35.5]} 11.
Nc3 {[%clk 0:02:33.5]} 11... Bxg2 {[%clk 0:02:32.4]} 12. Kxg2 {[%clk 0:02:33.7]}
12... Qb7+ {[%clk 0:02:32.9]} 13. Kg1 {[%clk 0:02:33.7]} 13... Nbd7 {[%clk
0:02:28.2]} 14. Rd1 {[%clk 0:02:31.2]} 14... Be7 {[%clk 0:02:20.9]} 15. Bg5
{[%clk 0:01:57.7]} 15... O-O {[%clk 0:02:17.1]} 16. Rac1 {[%clk 0:01:52]} 16...
h6 {[%clk 0:02:09.2]} 17. Bxf6 {[%clk 0:01:44.8]} 17... Nxf6 {[%clk 0:02:10.1]}
18. Qf3 {[%clk 0:01:41.1]} 18... Qxf3 {[%clk 0:02:08.2]} 19. Nxf3 {[%clk
0:01:40.6]} 19... Rfd8 {[%clk 0:02:06.3]} 20. Ne5 {[%clk 0:01:36.4]} 20... Rxd1+
{[%clk 0:01:49.9]} 21. Rxd1 {[%clk 0:01:36.2]} 21... Rd8 {[%clk 0:01:49.5]} 22.
Nc6 {[%clk 0:01:30.2]} 22... Rxd1+ {[%clk 0:01:47.5]} 23. Nxd1 {[%clk
0:01:30.5]} 23... Bd6 {[%clk 0:01:34.1]} 24. e3 {[%clk 0:01:24.9]} 24... Kf8
{[%clk 0:01:26]} 25. Kf1 {[%clk 0:01:24]} 25... Ke8 {[%clk 0:01:25.3]} 26. Ke2
{[%clk 0:01:23.9]} 26... Kd7 {[%clk 0:01:25.6]} 27. Nd4 {[%clk 0:01:24.2]} 27...
Be5 {[%clk 0:01:15.2]} 28. Nb3 {[%clk 0:01:21.3]} 28... Kc6 {[%clk 0:01:07.6]}
29. h3 {[%clk 0:01:18.4]} 29... Kb6 {[%clk 0:00:51.8]} 30. Kd3 {[%clk
0:01:17.7]} 30... Nd7 {[%clk 0:00:48.6]} 31. Nc3 {[%clk 0:01:17]} 31... a5
{[%clk 0:00:42.8]} 32. Nd4 {[%clk 0:00:55.1]} 32... Nc5+ {[%clk 0:00:33.8]} 33.
Kd2 {[%clk 0:00:54.7]} 33... b4 {[%clk 0:00:33]} 34. Nce2 {[%clk 0:00:54]} 34...
Ne4+ {[%clk 0:00:24.9]} 35. Ke1 {[%clk 0:00:54.2]} 35... a4 {[%clk 0:00:20.7]}
36. b3 {[%clk 0:00:47.2]} 36... axb3 {[%clk 0:00:18.2]} 37. axb3 {[%clk
0:00:46.7]} 37... Bf6 {[%clk 0:00:14.6]} 38. Nc2 {[%clk 0:00:40.2]} 38... Kc5
{[%clk 0:00:07.8]} 39. Nf4 {[%clk 0:00:38.9]} 39... Bc3+ {[%clk 0:00:05.3]} 40.
Ke2 {[%clk 0:00:39.1]} 40... Bf6 {[%clk 0:00:02.5]} 41. Nd3+ {[%clk 0:00:39.3]}
41... Kb5 {[%clk 0:00:02.1]} 42. Ndxb4 {[%clk 0:00:37.6]} 1-0

[Event "Early-Titled-Tuesday-Blitz-April-02-2024"]
[Site "Chess.com"]
[Date "2024.04.02"]
[Round "2"]
[White "lilleper1"]
[Black "Ajedrez_con_German"]
[Result "1-0"]
[WhiteElo "2905"]
[BlackElo "2608"]
[TimeControl "180+1"]
[EndTime "8:17:39 PDT"]
[Termination "lilleper1 won on time"]

1. Nf3 {[%clk 0:03:00.9]} 1... Nf6 {[%clk 0:02:49.2]} 2. c4 {[%clk 0:03:00.6]}
2... g6 {[%clk 0:02:46.3]} 3. Nc3 {[%clk 0:03:00.1]} 3... Bg7 {[%clk 0:02:46.1]}
4. e4 {[%clk 0:03:00.4]} 4... d6 {[%clk 0:02:46.4]} 5. d4 {[%clk 0:03:00.6]}
5... O-O {[%clk 0:02:46.4]} 6. Be2 {[%clk 0:03:01.3]} 6... Bg4 {[%clk
0:02:37.8]} 7. Be3 {[%clk 0:03:00.3]} 7... Nfd7 {[%clk 0:02:36.3]} 8. O-O {[%clk
0:02:56.6]} 8... e5 {[%clk 0:02:31]} 9. d5 {[%clk 0:02:51.5]} 9... a5 {[%clk
0:02:31]} 10. a3 {[%clk 0:02:47.3]} 10... Bxf3 {[%clk 0:02:23.9]} 11. Bxf3
{[%clk 0:02:46.9]} 11... Nc5 {[%clk 0:02:24]} 12. Qc2 {[%clk 0:02:31.3]} 12...
Nba6 {[%clk 0:02:22]} 13. Rab1 {[%clk 0:02:27.1]} 13... f5 {[%clk 0:02:17.6]}
14. b4 {[%clk 0:02:25.5]} 14... axb4 {[%clk 0:02:16.2]} 15. axb4 {[%clk
0:02:25.5]} 15... fxe4 {[%clk 0:02:10.4]} 16. Bg4 {[%clk 0:02:11.4]} 16... Nd3
{[%clk 0:02:10.2]} 17. Nxe4 {[%clk 0:02:05.1]} 17... Nf4 {[%clk 0:01:41.7]} 18.
g3 {[%clk 0:01:51.3]} 18... Kh8 {[%clk 0:01:26.6]} 19. gxf4 {[%clk 0:01:28]}
19... exf4 {[%clk 0:01:26.4]} 20. Bd2 {[%clk 0:01:28.6]} 20... Qh4 {[%clk
0:01:16.6]} 21. f3 {[%clk 0:01:06]} 21... Rae8 {[%clk 0:01:08.8]} 22. Be6 {[%clk
0:01:00.9]} 22... c6 {[%clk 0:00:50.6]} 23. Bc3 {[%clk 0:01:00.5]} 23... Nc7
{[%clk 0:00:45.4]} 24. Qb2 {[%clk 0:00:54.8]} 24... Nxe6 {[%clk 0:00:36.9]} 25.
dxe6 {[%clk 0:00:55.7]} 25... Bxc3 {[%clk 0:00:30.2]} 26. Qxc3+ {[%clk
0:00:56.6]} 26... Kg8 {[%clk 0:00:30.6]} 27. Nxd6 {[%clk 0:00:48.7]} 27... Rxe6
{[%clk 0:00:30.2]} 28. Ne4 {[%clk 0:00:49.2]} 28... Qh3 {[%clk 0:00:17.3]} 29.
Qc2 {[%clk 0:00:41.2]} 29... Re5 {[%clk 0:00:13.5]} 30. Qg2 {[%clk 0:00:39.1]}
30... Qe6 {[%clk 0:00:13.4]} 31. c5 {[%clk 0:00:29.5]} 31... Rff5 {[%clk
0:00:13.2]} 32. Kh1 {[%clk 0:00:26.6]} 32... h6 {[%clk 0:00:12.3]} 33. Rbd1
{[%clk 0:00:25.7]} 33... Rxe4 {[%clk 0:00:10.6]} 34. fxe4 {[%clk 0:00:25.4]}
34... Rg5 {[%clk 0:00:11.1]} 35. Qf3 {[%clk 0:00:21.9]} 35... Kg7 {[%clk
0:00:10.6]} 36. Qxf4 {[%clk 0:00:20.6]} 36... Re5 {[%clk 0:00:08.4]} 37. Qf8+
{[%clk 0:00:20.5]} 37... Kh7 {[%clk 0:00:08.3]} 38. Rf7+ {[%clk 0:00:21.1]} 1-0

[Event "Early-Titled-Tuesday-Blitz-April-02-2024"]
[Site "Chess.com"]
[Date "2024.04.02"]
[Round "2"]
[White "ural58"]
[Black "Zurability"]
[Result "1/2-1/2"]
[WhiteElo "2477"]
[BlackElo "2705"]
[TimeControl "180+1"]
[EndTime "8:17:40 PDT"]
[Termination "Game drawn by repetition"]

1. e4 {[%clk 0:03:00.9]} 1... c5 {[%clk 0:02:59.6]} 2. b3 {[%clk 0:03:00.4]}
2... g6 {[%clk 0:02:58.1]} 3. Bb2 {[%clk 0:03:00.3]} 3... Nf6 {[%clk 0:02:58.3]}
4. e5 {[%clk 0:03:00.1]} 4... Nd5 {[%clk 0:02:58.7]} 5. Nc3 {[%clk 0:03:00.5]}
5... Nxc3 {[%clk 0:02:56.8]} 6. Bxc3 {[%clk 0:03:01]} 6... Bg7 {[%clk
0:02:57.4]} 7. h4 {[%clk 0:03:01.2]} 7... Nc6 {[%clk 0:02:56.4]} 8. Qe2 {[%clk
0:02:57.5]} 8... d6 {[%clk 0:02:35.3]} 9. exd6 {[%clk 0:02:55.2]} 9... Bxc3
{[%clk 0:02:34.3]} 10. dxc3 {[%clk 0:02:43.3]} 10... Qxd6 {[%clk 0:02:33.1]} 11.
h5 {[%clk 0:02:41]} 11... O-O {[%clk 0:02:21.3]} 12. Rd1 {[%clk 0:02:36.4]}
12... Qe5 {[%clk 0:02:20.9]} 13. Qxe5 {[%clk 0:02:31.7]} 13... Nxe5 {[%clk
0:02:20.8]} 14. Be2 {[%clk 0:02:25.6]} 14... Bf5 {[%clk 0:02:20.2]} 15. f4
{[%clk 0:02:22.8]} 15... Ng4 {[%clk 0:02:11.4]} 16. Rd2 {[%clk 0:02:05.6]} 16...
Rad8 {[%clk 0:02:00.7]} 17. Bxg4 {[%clk 0:02:01.4]} 17... Bxg4 {[%clk
0:01:59.2]} 18. hxg6 {[%clk 0:02:00.8]} 18... hxg6 {[%clk 0:01:58.8]} 19. Ne2
{[%clk 0:01:56.4]} 19... Rxd2 {[%clk 0:01:55.3]} 20. Kxd2 {[%clk 0:01:56.2]}
20... Rd8+ {[%clk 0:01:56.2]} 21. Ke3 {[%clk 0:01:56.2]} 21... Rd6 {[%clk
0:01:43.8]} 22. Ng3 {[%clk 0:01:50.5]} 22... b6 {[%clk 0:01:39.3]} 23. b4 {[%clk
0:01:49.5]} 23... cxb4 {[%clk 0:01:31.5]} 24. cxb4 {[%clk 0:01:49.1]} 24... Rc6
{[%clk 0:01:32]} 25. Kd2 {[%clk 0:01:46.7]} 25... Rc4 {[%clk 0:01:31.7]} 26. Re1
{[%clk 0:01:42]} 26... Kf8 {[%clk 0:01:30.2]} 27. Re4 {[%clk 0:01:41.3]} 27...
Rc7 {[%clk 0:01:20.8]} 28. c3 {[%clk 0:01:41]} 28... Be6 {[%clk 0:01:17.5]} 29.
a4 {[%clk 0:01:39.4]} 29... Rd7+ {[%clk 0:01:14.5]} 30. Kc2 {[%clk 0:01:26.1]}
30... Ke8 {[%clk 0:01:09.6]} 31. Re3 {[%clk 0:01:23.8]} 31... Bd5 {[%clk
0:01:06.4]} 32. Re2 {[%clk 0:01:22.6]} 32... Bc6 {[%clk 0:00:59.3]} 33. b5
{[%clk 0:01:21.7]} 33... Bd5 {[%clk 0:00:59.6]} 34. Ne4 {[%clk 0:01:20.5]} 34...
Kd8 {[%clk 0:00:55.6]} 35. g3 {[%clk 0:01:19]} 35... Bc4 {[%clk 0:00:54.8]} 36.
Rd2 {[%clk 0:01:18.2]} 36... Bd5 {[%clk 0:00:52.6]} 37. Rd4 {[%clk 0:01:17.1]}
37... Kc7 {[%clk 0:00:46.1]} 38. c4 {[%clk 0:01:13.4]} 38... Bb7 {[%clk
0:00:41.2]} 39. Kc3 {[%clk 0:01:12]} 39... f6 {[%clk 0:00:29.1]} 40. Rxd7+
{[%clk 0:01:03.9]} 40... Kxd7 {[%clk 0:00:30]} 41. Nf2 {[%clk 0:01:02.3]} 41...
Kd6 {[%clk 0:00:28.5]} 42. Nd3 {[%clk 0:00:50.5]} 42... e5 {[%clk 0:00:27.5]}
43. fxe5+ {[%clk 0:00:50.3]} 43... fxe5 {[%clk 0:00:28.4]} 44. c5+ {[%clk
0:00:48.4]} 44... bxc5 {[%clk 0:00:27.5]} 45. Kc4 {[%clk 0:00:49]} 45... Bd5+
{[%clk 0:00:26.8]} 46. Kc3 {[%clk 0:00:49.7]} 46... c4 {[%clk 0:00:18]} 47. Nb4
{[%clk 0:00:49.1]} 47... Be6 {[%clk 0:00:06.5]} 48. Nc2 {[%clk 0:00:50]} 48...
Kc5 {[%clk 0:00:05.9]} 49. Ne3 {[%clk 0:00:49.2]} 49... e4 {[%clk 0:00:06.4]}
50. Nd1 {[%clk 0:00:48.7]} 50... Bd7 {[%clk 0:00:06.2]} 51. Ne3 {[%clk
0:00:48.6]} 51... Be6 {[%clk 0:00:03.6]} 52. Nd1 {[%clk 0:00:48.7]} 52... Bc8
{[%clk 0:00:03.9]} 53. Ne3 {[%clk 0:00:48.8]} 53... Be6 {[%clk 0:00:04.1]}
1/2-1/2

[Event "Early-Titled-Tuesday-Blitz-April-02-2024"]
[Site "Chess.com"]
[Date "2024.04.02"]
[Round "2"]
[White "superchess02"]
[Black "Matrix3x3a"]
[Result "1-0"]
[WhiteElo "2852"]
[BlackElo "2591"]
[TimeControl "180+1"]
[EndTime "8:17:41 PDT"]
[Termination "superchess02 won by resignation"]

1. d4 {[%clk 0:00:24.2]} 1... Nf6 {[%clk 0:02:58.1]} 2. c4 {[%clk 0:00:24.3]}
2... e6 {[%clk 0:02:57.7]} 3. Nf3 {[%clk 0:00:24.6]} 3... b6 {[%clk 0:02:56.4]}
4. Nc3 {[%clk 0:00:25.2]} 4... Bb4 {[%clk 0:02:55.1]} 5. Bg5 {[%clk 0:00:25.6]}
5... Bb7 {[%clk 0:02:54.4]} 6. e3 {[%clk 0:00:26.2]} 6... h6 {[%clk 0:02:53]} 7.
Bh4 {[%clk 0:00:26.5]} 7... g5 {[%clk 0:02:31.8]} 8. Bg3 {[%clk 0:00:26.8]} 8...
Ne4 {[%clk 0:01:34.7]} 9. Qc2 {[%clk 0:00:27.2]} 9... d6 {[%clk 0:01:29.5]} 10.
Bd3 {[%clk 0:00:27.4]} 10... Bxc3+ {[%clk 0:01:18.2]} 11. bxc3 {[%clk
0:00:27.1]} 11... Nxg3 {[%clk 0:01:09.8]} 12. hxg3 {[%clk 0:00:26.8]} 12... Nd7
{[%clk 0:01:08.9]} 13. e4 {[%clk 0:00:26.1]} 13... e5 {[%clk 0:00:59.7]} 14. Nd2
{[%clk 0:00:26.4]} 14... Qf6 {[%clk 0:00:56]} 15. d5 {[%clk 0:00:23.4]} 15...
O-O-O {[%clk 0:00:45.5]} 16. Nf1 {[%clk 0:00:23.6]} 16... Kb8 {[%clk 0:00:38.7]}
17. Ne3 {[%clk 0:00:24.3]} 17... Nc5 {[%clk 0:00:37.6]} 18. Be2 {[%clk
0:00:24.8]} 18... Qg6 {[%clk 0:00:27.7]} 19. Nf5 {[%clk 0:00:22.4]} 19... Bc8
{[%clk 0:00:25.6]} 20. Bh5 {[%clk 0:00:21.2]} 20... Qf6 {[%clk 0:00:24.5]} 21.
Ne3 {[%clk 0:00:21.3]} 21... Bd7 {[%clk 0:00:21.7]} 22. f3 {[%clk 0:00:21.9]}
22... a5 {[%clk 0:00:21.2]} 23. Qd2 {[%clk 0:00:21.7]} 23... Qg7 {[%clk
0:00:20.8]} 24. Ke2 {[%clk 0:00:21.7]} 24... Rhf8 {[%clk 0:00:21]} 25. Bg4
{[%clk 0:00:21.4]} 25... Qg6 {[%clk 0:00:20.4]} 26. Bf5 {[%clk 0:00:21.5]} 26...
Qf6 {[%clk 0:00:19.7]} 27. Ng4 {[%clk 0:00:21.4]} 27... Qe7 {[%clk 0:00:19]} 28.
Bxd7 {[%clk 0:00:20.4]} 28... Rxd7 {[%clk 0:00:19.3]} 29. Rxh6 {[%clk 0:00:21]}
29... f5 {[%clk 0:00:19.3]} 30. exf5 {[%clk 0:00:21.4]} 30... e4 {[%clk
0:00:19.1]} 31. f4 {[%clk 0:00:21.1]} 31... gxf4 {[%clk 0:00:18.7]} 32. Qxf4
{[%clk 0:00:21.2]} 32... Nd3 {[%clk 0:00:18.5]} 33. Qe3 {[%clk 0:00:19.3]} 33...
Rxf5 {[%clk 0:00:18.1]} 34. Rf1 {[%clk 0:00:17.5]} 34... Rxf1 {[%clk 0:00:17.3]}
35. Kxf1 {[%clk 0:00:18.4]} 35... Rd8 {[%clk 0:00:17.6]} 36. Re6 {[%clk
0:00:17.5]} 36... Qf7+ {[%clk 0:00:17.2]} 37. Ke2 {[%clk 0:00:17.8]} 37... Rg8
{[%clk 0:00:17.1]} 38. Rxe4 {[%clk 0:00:17.3]} 38... Nc5 {[%clk 0:00:17.2]} 39.
Rf4 {[%clk 0:00:17.3]} 39... Qg7 {[%clk 0:00:17.6]} 40. Qf3 {[%clk 0:00:17.3]}
40... Qe5+ {[%clk 0:00:17.1]} 41. Nxe5 {[%clk 0:00:17]} 1-0